[Event "32nd NATO Chess Championship"]
[Site "Tartu, Estonia"]
[Date "2022.06.30"]
[Round "6.8"]
[White "Pazeriene, Diana"]
[Black "Bohn, Ulrich"]
[Result "0-1"]
[TimeControl "90 min + 30 sec increment from move one"]
[WhiteFideId "12802190"]
[BlackFideId "4656105"]
[WhiteElo "1930"]
[BlackElo "2168"]

1. d4 {[%clk 01:30:57]} {[%emt 00:00:03]} Nf6 {[%clk 01:30:52]} {[%emt
00:00:07]} 2. c4 {[%clk 01:31:13]} {[%emt 00:00:15]} c5 {[%clk 01:31:16]}
{[%emt 00:00:05]} 3. d5 {[%clk 01:31:00]} {[%emt 00:00:44]} b5 {[%clk
01:31:38]} {[%emt 00:00:08]} 4. cxb5 {[%clk 01:30:41]} {[%emt 00:00:49]} a6
{[%clk 01:32:02]} {[%emt 00:00:07]} 5. bxa6 {[%clk 01:30:33]} {[%emt 00:00:38]}
g6 {[%clk 01:32:23]} {[%emt 00:00:08]} 6. Nc3 {[%clk 01:30:01]} {[%emt
00:01:03]} Bxa6 {[%clk 01:31:54]} {[%emt 00:00:58]} 7. e4 {[%clk 01:25:24]}
{[%emt 00:05:06]} Bxf1 {[%clk 01:32:17]} {[%emt 00:00:07]} 8. Kxf1 {[%clk
01:25:54]} d6 {[%clk 01:32:37]} {[%emt 00:00:11]} 9. Nf3 {[%clk 01:24:27]}
{[%emt 00:01:57]} Qc8 {[%clk 01:24:17]} {[%emt 00:08:50]} 10. h3 {[%clk
01:19:13]} {[%emt 00:05:43]} Bg7 {[%clk 01:21:51]} {[%emt 00:02:57]} 11. g3
{[%clk 01:19:02]} {[%emt 00:00:42]} O-O {[%clk 01:22:16]} {[%emt 00:00:04]} 12.
Kg2 {[%clk 01:19:12]} {[%emt 00:00:21]} Na6 {[%clk 01:22:16]} {[%emt 00:00:29]}
13. Rb1 {[%clk 01:14:23]} {[%emt 00:05:19]} Nd7 {[%clk 01:18:15]} {[%emt
00:04:31]} 14. a4 {[%clk 00:53:21]} {[%emt 00:21:32]} Qb7 {[%clk 01:00:33]}
{[%emt 00:18:11]} 15. Bd2 {[%clk 00:48:55]} {[%emt 00:04:56]} Nb6 {[%clk
00:39:50]} {[%emt 00:21:13]} 16. Re1 {[%clk 00:33:04]} {[%emt 00:16:22]} Nb4
{[%clk 00:38:34]} {[%emt 00:01:46]} 17. b3 {[%clk 00:27:43]} {[%emt 00:05:51]}
f5 {[%clk 00:38:43]} {[%emt 00:00:21]} 18. Nb5 {[%clk 00:18:53]} {[%emt
00:09:20]} Nd3 {[%clk 00:30:15]} {[%emt 00:08:56]} 19. Re2 {[%clk 00:17:38]}
{[%emt 00:01:47]} fxe4 {[%clk 00:28:36]} {[%emt 00:02:09]} 20. Ng5 {[%clk
00:16:08]} {[%emt 00:01:59]} Nxd5 {[%clk 00:22:20]} {[%emt 00:06:46]} 21. Nxe4
{[%clk 00:15:50]} {[%emt 00:00:49]} Nxf2 {[%clk 00:21:06]} {[%emt 00:01:43]} 22.
Rxf2 {[%clk 00:16:00]} {[%emt 00:00:20]} Nf6 {[%clk 00:21:30]} {[%emt
00:00:06]} 23. Kh2 {[%clk 00:06:02]} {[%emt 00:10:29]} Nxe4 {[%clk 00:21:47]}
{[%emt 00:00:13]} 24. Rxf8+ {[%clk 00:06:08]} {[%emt 00:00:24]} Rxf8 {[%clk
00:21:58]} {[%emt 00:00:18]} 25. Be3 {[%clk 00:06:31]} {[%emt 00:00:07]} Nxg3
{[%clk 00:17:24]} {[%emt 00:05:04]} 26. Kxg3 {[%clk 00:06:28]} {[%emt
00:00:34]} Be5+ {[%clk 00:17:49]} {[%emt 00:00:04]} 27. Kh4 {[%clk 00:06:22]}
{[%emt 00:00:36]} Qe4+ {[%clk 00:18:02]} {[%emt 00:00:16]} 0-1

[Event "32nd NATO Chess Championship"]
[Site "Tartu, Estonia"]
[Date "2022.06.30"]
[Round "6.9"]
[White "Jauk, Wilhelm"]
[Black "Graczyk, Damian"]
[Result "1/2-1/2"]
[TimeControl "90 min + 30 sec increment from move one"]
[WhiteFideId "24681067"]
[BlackFideId "1170716"]
[WhiteElo "2156"]
[BlackElo "2151"]

1. d4 {[%clk 01:30:57]} {[%emt 00:00:03]} Nf6 {[%clk 01:30:54]} {[%emt
00:00:06]} 2. Nf3 {[%clk 01:31:22]} {[%emt 00:00:06]} e6 {[%clk 01:31:19]}
{[%emt 00:00:05]} 3. c4 {[%clk 01:30:48]} {[%emt 00:01:04]} Bb4+ {[%clk
01:31:41]} {[%emt 00:00:07]} 4. Bd2 {[%clk 01:30:52]} {[%emt 00:00:26]} a5
{[%clk 01:32:04]} {[%emt 00:00:07]} 5. g3 {[%clk 01:27:54]} {[%emt 00:03:28]}
b6 {[%clk 01:32:00]} {[%emt 00:00:35]} 6. Bg2 {[%clk 01:27:57]} {[%emt
00:00:27]} Bb7 {[%clk 01:32:28]} {[%emt 00:00:02]} 7. O-O {[%clk 01:27:52]}
{[%emt 00:00:35]} Bxd2 {[%clk 01:32:20]} {[%emt 00:00:38]} 8. Nbxd2 {[%clk
01:25:35]} {[%emt 00:02:46]} O-O {[%clk 01:32:37]} {[%emt 00:00:13]} 9. Qc2
{[%clk 01:22:59]} {[%emt 00:03:07]} Nc6 {[%clk 01:24:37]} {[%emt 00:08:30]} 10.
e4 {[%clk 01:16:35]} {[%emt 00:06:54]} Qe7 {[%clk 01:21:46]} {[%emt 00:03:20]}
11. Rfe1 {[%clk 01:14:43]} {[%emt 00:02:22]} e5 {[%clk 01:17:53]} {[%emt
00:04:24]} 12. Qc3 {[%clk 00:56:26]} {[%emt 00:18:47]} d6 {[%clk 01:16:18]}
{[%emt 00:02:04]} 13. d5 {[%clk 00:51:17]} {[%emt 00:05:39]} Nb8 {[%clk
01:15:25]} {[%emt 00:01:23]} 14. b3 {[%clk 00:50:16]} {[%emt 00:01:31]} Nbd7
{[%clk 01:15:34]} {[%emt 00:00:20]} 15. a3 {[%clk 00:50:15]} {[%emt 00:00:32]}
Nh5 {[%clk 01:11:44]} {[%emt 00:04:20]} 16. Bh3 {[%clk 00:47:55]} {[%emt
00:02:49]} g6 {[%clk 01:10:16]} {[%emt 00:01:58]} 17. Nh4 {[%clk 00:44:46]}
{[%emt 00:03:39]} Ndf6 {[%clk 01:08:07]} {[%emt 00:02:39]} 18. Rac1 {[%clk
00:42:54]} {[%emt 00:02:22]} Bc8 {[%clk 01:06:05]} {[%emt 00:02:33]} 19. Bxc8
{[%clk 00:43:10]} {[%emt 00:00:14]} Rfxc8 {[%clk 01:06:13]} {[%emt 00:00:22]}
20. Qe3 {[%clk 00:38:45]} {[%emt 00:04:54]} Rf8 {[%clk 00:56:00]} {[%emt
00:10:44]} 21. Qe2 {[%clk 00:30:20]} {[%emt 00:08:54]} Ng7 {[%clk 00:51:34]}
{[%emt 00:04:56]} 22. Ng2 {[%clk 00:27:46]} {[%emt 00:03:05]} Nfh5 {[%clk
00:51:09]} {[%emt 00:00:54]} 23. f3 {[%clk 00:25:19]} {[%emt 00:02:58]} h6
{[%clk 00:49:04]} {[%emt 00:02:34]} 24. Rf1 {[%clk 00:23:10]} {[%emt 00:02:40]}
f5 {[%clk 00:37:52]} {[%emt 00:11:42]} 25. Nb1 {[%clk 00:22:25]} {[%emt
00:01:15]} Kh7 {[%clk 00:29:50]} {[%emt 00:08:32]} 1/2-1/2

[Event "32nd NATO Chess Championship"]
[Site "Tartu, Estonia"]
[Date "2022.06.30"]
[Round "6.10"]
[White "Nill, Oliver"]
[Black "Kedzierski, Slawomir"]
[Result "1/2-1/2"]
[TimeControl "90 min + 30 sec increment from move one"]
[WhiteFideId "4652630"]
[BlackFideId "1134949"]
[WhiteElo "2166"]
[BlackElo "2133"]

1. c4 {[%clk 01:30:30]} {[%emt 00:25:33]} Nf6 {[%clk 01:30:36]} {[%emt
00:00:26]} 2. Nc3 {[%clk 01:30:53]} {[%emt 00:00:07]} e5 {[%clk 01:30:31]}
{[%emt 00:00:35]} 3. g3 {[%clk 01:31:13]} {[%emt 00:00:11]} Nc6 {[%clk
01:29:17]} {[%emt 00:01:44]} 4. Bg2 {[%clk 01:31:36]} {[%emt 00:00:07]} Bc5
{[%clk 01:29:36]} {[%emt 00:00:10]} 5. Nf3 {[%clk 01:29:20]} {[%emt 00:02:47]}
d6 {[%clk 01:29:45]} {[%emt 00:00:21]} 6. O-O {[%clk 01:28:59]} {[%emt
00:00:51]} O-O {[%clk 01:29:57]} {[%emt 00:00:17]} 7. d3 {[%clk 01:26:39]}
{[%emt 00:02:50]} h6 {[%clk 01:27:40]} {[%emt 00:02:47]} 8. Na4 {[%clk
01:24:22]} {[%emt 00:02:49]} Bb6 {[%clk 01:27:14]} {[%emt 00:00:55]} 9. a3
{[%clk 01:19:00]} {[%emt 00:05:51]} Re8 {[%clk 01:23:08]} {[%emt 00:04:36]} 10.
b4 {[%clk 01:13:51]} {[%emt 00:05:40]} a6 {[%clk 01:10:34]} {[%emt 00:13:04]}
11. Nxb6 {[%clk 01:13:00]} {[%emt 00:01:21]} cxb6 {[%clk 01:10:57]} {[%emt
00:00:06]} 12. Bb2 {[%clk 01:08:47]} {[%emt 00:04:43]} Bf5 {[%clk 01:09:16]}
{[%emt 00:02:11]} 13. Rc1 {[%clk 01:03:39]} {[%emt 00:05:38]} Rc8 {[%clk
01:08:06]} {[%emt 00:01:39]} 14. h3 {[%clk 00:56:49]} {[%emt 00:07:21]} Rc7
{[%clk 01:00:33]} {[%emt 00:08:04]} 15. Kh2 {[%clk 00:53:53]} {[%emt 00:03:26]}
Bh7 {[%clk 00:59:35]} {[%emt 00:01:27]} 16. Nd2 {[%clk 00:49:39]} {[%emt
00:04:44]} Qe7 {[%clk 00:39:10]} {[%emt 00:20:55]} 17. Ne4 {[%clk 00:46:07]}
{[%emt 00:04:02]} Bxe4 {[%clk 00:35:21]} {[%emt 00:04:20]} 18. dxe4 {[%clk
00:46:17]} {[%emt 00:00:20]} Rec8 {[%clk 00:34:56]} {[%emt 00:00:54]} 19. Qd3
{[%clk 00:44:43]} {[%emt 00:02:04]} Ne8 {[%clk 00:32:44]} {[%emt 00:02:42]} 20.
Rfd1 {[%clk 00:39:33]} {[%emt 00:05:40]} Nd8 {[%clk 00:30:01]} {[%emt
00:03:13]} 21. e3 {[%clk 00:35:59]} {[%emt 00:04:04]} Ne6 {[%clk 00:27:09]}
{[%emt 00:03:21]} 22. f4 {[%clk 00:35:00]} {[%emt 00:01:30]} f6 {[%clk
00:27:10]} {[%emt 00:00:30]} 23. Bf3 {[%clk 00:33:01]} {[%emt 00:02:29]} Kh7
{[%clk 00:25:58]} {[%emt 00:01:41]} 24. Bg4 {[%clk 00:30:53]} {[%emt 00:02:38]}
Rb8 {[%clk 00:24:41]} {[%emt 00:01:47]} 25. Qd5 {[%clk 00:28:43]} {[%emt
00:02:40]} Nf8 {[%clk 00:24:31]} {[%emt 00:00:40]} 26. h4 {[%clk 00:26:41]}
{[%emt 00:02:32]} Rc6 {[%clk 00:22:51]} {[%emt 00:02:10]} 27. h5 {[%clk
00:23:49]} {[%emt 00:03:23]} Kh8 {[%clk 00:20:53]} {[%emt 00:02:27]} 28. a4
{[%clk 00:20:46]} {[%emt 00:03:34]} Ra8 {[%clk 00:17:53]} {[%emt 00:03:30]} 29.
Ba3 {[%clk 00:18:11]} {[%emt 00:03:05]} Nc7 {[%clk 00:15:15]} {[%emt 00:03:07]}
30. Qd3 {[%clk 00:17:16]} {[%emt 00:01:25]} Ne8 {[%clk 00:14:53]} {[%emt
00:00:52]} 31. b5 {[%clk 00:16:30]} {[%emt 00:01:17]} Rc7 {[%clk 00:10:12]}
{[%emt 00:05:11]} 32. Bxd6 {[%clk 00:16:02]} {[%emt 00:00:57]} Nxd6 {[%clk
00:09:58]} {[%emt 00:00:45]} 33. Qxd6 {[%clk 00:16:27]} {[%emt 00:00:05]} exf4
{[%clk 00:09:36]} {[%emt 00:00:51]} 34. exf4 {[%clk 00:16:22]} {[%emt
00:00:34]} axb5 {[%clk 00:09:29]} {[%emt 00:00:38]} 35. axb5 {[%clk 00:16:37]}
{[%emt 00:00:16]} Qf7 {[%clk 00:04:44]} {[%emt 00:05:14]} 36. Qd5 {[%clk
00:14:51]} {[%emt 00:02:16]} Qe7 {[%clk 00:05:02]} {[%emt 00:00:12]} 37. Ra1
{[%clk 00:13:01]} {[%emt 00:02:20]} Re8 {[%clk 00:05:09]} {[%emt 00:00:22]} 38.
Bf5 {[%clk 00:13:09]} {[%emt 00:00:23]} Rc5 {[%clk 00:04:05]} {[%emt 00:01:34]}
39. Qd3 {[%clk 00:09:22]} {[%emt 00:04:16]} Qf7 {[%clk 00:04:04]} {[%emt
00:00:31]} 40. g4 {[%clk 00:09:11]} {[%emt 00:00:42]} Rxc4 {[%clk 00:03:55]}
{[%emt 00:00:39]} 41. Rac1 {[%clk 00:06:58]} {[%emt 00:02:43]} Rxc1 {[%clk
00:03:03]} {[%emt 00:01:22]} 42. Rxc1 {[%clk 00:07:22]} {[%emt 00:00:06]} Qa2+
{[%clk 00:03:18]} {[%emt 00:00:15]} 43. Rc2 {[%clk 00:06:21]} {[%emt 00:01:31]}
Qa5 {[%clk 00:01:52]} {[%emt 00:01:55]} 44. Rd2 {[%clk 00:03:26]} {[%emt
00:03:26]} Qb4 {[%clk 00:01:48]} {[%emt 00:00:33]} 45. Rc2 {[%clk 00:02:50]}
{[%emt 00:01:07]} Qa5 {[%clk 00:01:21]} {[%emt 00:00:57]} 46. Rc8 {[%clk
00:02:41]} {[%emt 00:00:39]} Rxc8 {[%clk 00:00:57]} {[%emt 00:00:54]} 47. Bxc8
{[%clk 00:03:09]} {[%emt 00:00:02]} Qb4 {[%clk 00:01:05]} {[%emt 00:00:22]} 48.
Bxb7 {[%clk 00:02:31]} {[%emt 00:01:08]} Ne6 {[%clk 00:01:11]} {[%emt
00:00:24]} 49. Bc8 {[%clk 00:02:45]} {[%emt 00:00:16]} Nd4 {[%clk 00:01:09]}
{[%emt 00:00:32]} 50. Kh3 {[%clk 00:01:42]} {[%emt 00:01:33]} Qc5 {[%clk
00:01:09]} {[%emt 00:00:30]} 51. Bf5 {[%clk 00:01:34]} {[%emt 00:00:38]} Nxf5
{[%clk 00:01:27]} {[%emt 00:00:13]} 52. exf5 {[%clk 00:01:21]} {[%emt
00:00:43]} Qf2 {[%clk 00:01:27]} {[%emt 00:00:29]} 53. Qe4 {[%clk 00:00:45]}
{[%emt 00:01:05]} Qf1+ {[%clk 00:01:43]} {[%emt 00:00:15]} 54. Kg3 {[%clk
00:01:01]} {[%emt 00:00:15]} Qxb5 {[%clk 00:02:05]} {[%emt 00:00:07]} 55. Kh4
{[%clk 00:00:38]} {[%emt 00:00:53]} Kg8 {[%clk 00:02:08]} {[%emt 00:00:26]} 56.
Qe6+ {[%clk 00:00:53]} {[%emt 00:00:17]} Kf8 {[%clk 00:02:27]} {[%emt
00:00:09]} 57. Qd6+ {[%clk 00:01:17]} {[%emt 00:00:07]} Kf7 {[%clk 00:01:53]}
{[%emt 00:01:04]} 58. Qe6+ {[%clk 00:01:46]} {[%emt 00:00:02]} Kf8 {[%clk
00:02:15]} {[%emt 00:00:08]} 59. Qd6+ {[%clk 00:01:47]} {[%emt 00:00:28]}
1/2-1/2

[Event "32nd NATO Chess Championship"]
[Site "Tartu, Estonia"]
[Date "2022.06.30"]
[Round "6.11"]
[White "Peraino, Andrew"]
[Black "Pedersen, Finn"]
[Result "1-0"]
[TimeControl "90 min + 30 sec increment from move one"]
[BlackTitle "FM"]
[WhiteFideId "30936187"]
[BlackFideId "1400762"]
[WhiteElo "1940"]
[BlackElo "2300"]

1. e4 {[%clk 01:30:44]} {[%emt 00:00:15]} c6 {[%clk 01:30:52]} {[%emt
00:00:09]} 2. d4 {[%clk 01:30:23]} {[%emt 00:00:51]} d5 {[%clk 01:31:17]}
{[%emt 00:00:04]} 3. e5 {[%clk 01:30:47]} {[%emt 00:00:07]} Bf5 {[%clk
01:31:40]} {[%emt 00:00:05]} 4. Nd2 {[%clk 01:29:57]} {[%emt 00:01:21]} e6
{[%clk 01:31:25]} {[%emt 00:00:46]} 5. Nb3 {[%clk 01:29:55]} {[%emt 00:00:32]}
Nd7 {[%clk 01:27:01]} {[%emt 00:04:54]} 6. f4 {[%clk 01:26:43]} {[%emt
00:03:42]} Ne7 {[%clk 01:23:49]} {[%emt 00:03:41]} 7. Bd2 {[%clk 01:24:15]}
{[%emt 00:02:58]} h5 {[%clk 01:21:46]} {[%emt 00:02:34]} 8. a4 {[%clk
01:21:43]} {[%emt 00:03:02]} Bg4 {[%clk 01:20:05]} {[%emt 00:02:10]} 9. Be2
{[%clk 01:19:27]} {[%emt 00:02:46]} Nf5 {[%clk 01:19:05]} {[%emt 00:01:31]} 10.
g3 {[%clk 01:18:45]} {[%emt 00:01:11]} c5 {[%clk 01:13:58]} {[%emt 00:05:38]}
11. Bxg4 {[%clk 01:18:12]} {[%emt 00:01:03]} hxg4 {[%clk 01:14:15]} {[%emt
00:00:12]} 12. Qxg4 {[%clk 01:15:07]} {[%emt 00:03:36]} c4 {[%clk 01:14:10]}
{[%emt 00:00:34]} 13. Nc1 {[%clk 01:12:09]} {[%emt 00:03:28]} Nxd4 {[%clk
01:14:02]} {[%emt 00:00:38]} 14. Qd1 {[%clk 01:12:15]} {[%emt 00:00:25]} Nf5
{[%clk 01:13:27]} {[%emt 00:01:04]} 15. Nce2 {[%clk 01:10:32]} {[%emt
00:02:13]} Bc5 {[%clk 01:11:01]} {[%emt 00:02:55]} 16. Nf3 {[%clk 01:08:52]}
{[%emt 00:02:11]} Qb6 {[%clk 01:06:14]} {[%emt 00:05:18]} 17. c3 {[%clk
01:01:30]} {[%emt 00:07:52]} a5 {[%clk 00:58:53]} {[%emt 00:07:51]} 18. Bc1
{[%clk 00:48:54]} {[%emt 00:13:06]} Bf2+ {[%clk 00:54:57]} {[%emt 00:04:25]} 19.
Kf1 {[%clk 00:49:03]} {[%emt 00:00:20]} Bxg3 {[%clk 00:53:54]} {[%emt
00:01:34]} 20. Nfd4 {[%clk 00:48:24]} {[%emt 00:01:10]} Bh4 {[%clk 00:53:20]}
{[%emt 00:01:03]} 21. Rg1 {[%clk 00:46:46]} {[%emt 00:02:07]} g6 {[%clk
00:53:02]} {[%emt 00:00:49]} 22. Rg2 {[%clk 00:46:01]} {[%emt 00:01:15]} Nxd4
{[%clk 00:49:47]} {[%emt 00:03:46]} 23. Nxd4 {[%clk 00:46:00]} {[%emt
00:00:30]} Be7 {[%clk 00:48:29]} {[%emt 00:01:48]} 24. Rb1 {[%clk 00:42:24]}
{[%emt 00:04:06]} Bc5 {[%clk 00:48:06]} {[%emt 00:00:53]} 25. Nb5 {[%clk
00:42:45]} {[%emt 00:00:09]} Qc6 {[%clk 00:46:15]} {[%emt 00:02:21]} 26. Qf3
{[%clk 00:41:37]} {[%emt 00:01:39]} Nb6 {[%clk 00:43:19]} {[%emt 00:03:24]} 27.
Qd1 {[%clk 00:38:35]} {[%emt 00:03:32]} Rh3 {[%clk 00:41:47]} {[%emt 00:02:02]}
28. b3 {[%clk 00:36:06]} {[%emt 00:03:00]} cxb3 {[%clk 00:40:29]} {[%emt
00:01:48]} 29. Qg4 {[%clk 00:33:02]} {[%emt 00:03:34]} Rh8 {[%clk 00:37:42]}
{[%emt 00:03:16]} 30. Rxb3 {[%clk 00:32:08]} {[%emt 00:01:25]} Nxa4 {[%clk
00:36:48]} {[%emt 00:01:23]} 31. f5 {[%clk 00:31:54]} {[%emt 00:00:44]} Nb6
{[%clk 00:30:17]} {[%emt 00:07:03]} 32. fxg6 {[%clk 00:32:06]} {[%emt
00:00:18]} fxg6 {[%clk 00:29:43]} {[%emt 00:01:04]} 33. Qxg6+ {[%clk 00:32:24]}
{[%emt 00:00:11]} Kd7 {[%clk 00:30:04]} {[%emt 00:00:09]} 34. Qg7+ {[%clk
00:32:07]} {[%emt 00:00:47]} Be7 {[%clk 00:30:13]} {[%emt 00:00:20]} 35. Bg5
{[%clk 00:16:16]} {[%emt 00:16:22]} Qc4+ {[%clk 00:28:07]} {[%emt 00:02:35]} 36.
Ke1 {[%clk 00:14:04]} {[%emt 00:02:42]} Rhe8 {[%clk 00:17:19]} {[%emt
00:11:19]} 37. Nd4 {[%clk 00:13:12]} {[%emt 00:01:22]} Ra6 {[%clk 00:14:28]}
{[%emt 00:03:21]} 38. Rgb2 {[%clk 00:12:51]} {[%emt 00:00:52]} Qc5 {[%clk
00:08:36]} {[%emt 00:06:22]} 39. Qf7 {[%clk 00:12:16]} {[%emt 00:01:04]} Na8
{[%clk 00:08:51]} {[%emt 00:00:15]} 40. Rxb7+ {[%clk 00:12:11]} {[%emt
00:00:34]} Nc7 {[%clk 00:09:17]} {[%emt 00:00:05]} 41. Kd2 {[%clk 00:11:42]}
{[%emt 00:00:59]} a4 {[%clk 00:09:21]} {[%emt 00:00:27]} 42. R2b5 {[%clk
00:10:14]} {[%emt 00:01:58]} Qc4 {[%clk 00:09:24]} {[%emt 00:00:27]} 43. R5b6
{[%clk 00:09:42]} {[%emt 00:01:02]} Rxb6 {[%clk 00:08:49]} {[%emt 00:01:04]} 44.
Rxb6 {[%clk 00:10:03]} {[%emt 00:00:09]} Qa2+ {[%clk 00:08:52]} {[%emt
00:00:28]} 45. Nc2 {[%clk 00:09:25]} {[%emt 00:01:07]} d4 {[%clk 00:07:45]}
{[%emt 00:01:37]} 46. cxd4 {[%clk 00:08:38]} {[%emt 00:01:18]} Kc8 {[%clk
00:06:18]} {[%emt 00:01:55]} 47. Bxe7 {[%clk 00:08:37]} {[%emt 00:00:31]} Rh8
{[%clk 00:06:06]} {[%emt 00:00:41]} 48. h4 {[%clk 00:08:16]} {[%emt 00:00:52]}
Qd5 {[%clk 00:06:31]} {[%emt 00:00:05]} 49. Bd6 {[%clk 00:05:21]} {[%emt
00:03:25]} Qa5+ {[%clk 00:05:30]} {[%emt 00:01:31]} 50. Rb4 {[%clk 00:05:50]}
{[%emt 00:00:02]} 1-0

[Event "32nd NATO Chess Championship"]
[Site "Tartu, Estonia"]
[Date "2022.06.30"]
[Round "6.13"]
[White "Onley, David E"]
[Black "Randall, Gordon"]
[Result "1-0"]
[TimeControl "90 min + 30 sec increment from move one"]
[WhiteFideId "419311"]
[BlackFideId "2056518"]
[WhiteElo "2083"]
[BlackElo "1954"]

1. e4 {[%clk 01:30:57]} {[%emt 00:00:02]} c6 {[%clk 01:30:53]} {[%emt
00:00:08]} 2. d4 {[%clk 01:31:17]} {[%emt 00:00:09]} d5 {[%clk 01:31:17]}
{[%emt 00:00:06]} 3. exd5 {[%clk 01:31:37]} {[%emt 00:00:12]} cxd5 {[%clk
01:31:36]} {[%emt 00:00:10]} 4. Bd3 {[%clk 01:31:49]} {[%emt 00:00:18]} Nc6
{[%clk 01:31:54]} {[%emt 00:00:11]} 5. c3 {[%clk 01:32:08]} {[%emt 00:00:12]}
Qc7 {[%clk 01:32:13]} {[%emt 00:00:10]} 6. h3 {[%clk 01:32:10]} {[%emt
00:00:28]} g6 {[%clk 01:26:52]} {[%emt 00:05:50]} 7. Nf3 {[%clk 01:31:14]}
{[%emt 00:01:27]} Bf5 {[%clk 01:20:51]} {[%emt 00:06:32]} 8. O-O {[%clk
01:31:23]} {[%emt 00:00:21]} Nf6 {[%clk 01:17:42]} {[%emt 00:03:38]} 9. Re1
{[%clk 01:30:11]} {[%emt 00:01:42]} Bxd3 {[%clk 01:11:00]} {[%emt 00:07:12]} 10.
Qxd3 {[%clk 01:30:31]} {[%emt 00:00:11]} Bg7 {[%clk 01:11:24]} {[%emt
00:00:06]} 11. Nbd2 {[%clk 01:27:50]} {[%emt 00:03:10]} Nh5 {[%clk 01:00:04]}
{[%emt 00:11:50]} 12. Nf1 {[%clk 01:23:34]} {[%emt 00:04:46]} Rd8 {[%clk
00:55:15]} {[%emt 00:05:16]} 13. Be3 {[%clk 01:18:19]} {[%emt 00:05:47]} O-O
{[%clk 00:54:34]} {[%emt 00:01:12]} 14. Rad1 {[%clk 01:17:24]} {[%emt
00:01:24]} Rfe8 {[%clk 00:50:22]} {[%emt 00:04:43]} 15. N1h2 {[%clk 01:14:53]}
{[%emt 00:03:01]} Nf6 {[%clk 00:46:28]} {[%emt 00:04:25]} 16. Bc1 {[%clk
01:07:17]} {[%emt 00:08:05]} Nd7 {[%clk 00:36:33]} {[%emt 00:10:25]} 17. Ng4
{[%clk 01:01:41]} {[%emt 00:06:06]} Qd6 {[%clk 00:31:23]} {[%emt 00:05:40]} 18.
Nh6+ {[%clk 00:52:23]} {[%emt 00:09:48]} Kf8 {[%clk 00:29:03]} {[%emt
00:02:52]} 19. Qd2 {[%clk 00:45:46]} {[%emt 00:07:07]} f6 {[%clk 00:25:52]}
{[%emt 00:03:41]} 20. h4 {[%clk 00:38:56]} {[%emt 00:07:19]} e6 {[%clk
00:22:52]} {[%emt 00:03:31]} 21. h5 {[%clk 00:34:28]} {[%emt 00:04:57]} g5
{[%clk 00:18:37]} {[%emt 00:04:45]} 22. Qd3 {[%clk 00:28:43]} {[%emt 00:06:15]}
Bxh6 {[%clk 00:17:44]} {[%emt 00:01:23]} 23. Qxh7 {[%clk 00:28:37]} {[%emt
00:00:36]} Bg7 {[%clk 00:17:58]} {[%emt 00:00:16]} 24. h6 {[%clk 00:27:14]}
{[%emt 00:01:54]} Re7 {[%clk 00:17:28]} {[%emt 00:01:00]} 25. Re3 {[%clk
00:20:32]} {[%emt 00:07:11]} Bxh6 {[%clk 00:16:24]} {[%emt 00:01:34]} 26. Qxh6+
{[%clk 00:20:15]} {[%emt 00:00:47]} Rg7 {[%clk 00:16:09]} {[%emt 00:00:44]} 27.
Nxg5 {[%clk 00:17:14]} {[%emt 00:03:32]} fxg5 {[%clk 00:15:43]} {[%emt
00:00:56]} 28. Rxe6 {[%clk 00:17:29]} {[%emt 00:00:14]} Qb8 {[%clk 00:15:05]}
{[%emt 00:01:09]} 29. Rg6 {[%clk 00:15:04]} {[%emt 00:02:55]} 1-0

[Event "32nd NATO Chess Championship"]
[Site "Tartu, Estonia"]
[Date "2022.06.30"]
[Round "6.16"]
[White "Tammisto, Janek"]
[Black "Cirkvencic, Franci"]
[Result "1/2-1/2"]
[TimeControl "90 min + 30 sec increment from move one"]
[WhiteFideId "4510950"]
[BlackFideId "14600528"]
[WhiteElo "1881"]
[BlackElo "2000"]

1. d4 {[%clk 01:30:56]} {[%emt 00:00:03]} Nf6 {[%clk 01:30:42]} {[%emt
00:00:18]} 2. Nf3 {[%clk 01:31:21]} {[%emt 00:00:06]} d5 {[%clk 01:30:14]}
{[%emt 00:00:57]} 3. Bf4 {[%clk 01:31:28]} {[%emt 00:00:23]} c5 {[%clk
01:30:10]} {[%emt 00:00:34]} 4. e3 {[%clk 01:31:32]} {[%emt 00:00:26]} e6
{[%clk 01:29:52]} {[%emt 00:00:48]} 5. Nbd2 {[%clk 01:31:40]} {[%emt 00:00:21]}
Nc6 {[%clk 01:29:32]} {[%emt 00:00:51]} 6. c3 {[%clk 01:31:22]} {[%emt
00:00:49]} Bd6 {[%clk 01:28:50]} {[%emt 00:01:11]} 7. Ne5 {[%clk 01:31:11]}
{[%emt 00:00:41]} Qc7 {[%clk 01:27:58]} {[%emt 00:01:22]} 8. Ndf3 {[%clk
01:30:51]} {[%emt 00:00:50]} cxd4 {[%clk 01:24:20]} {[%emt 00:04:09]} 9. Nxc6
{[%clk 01:29:27]} {[%emt 00:01:53]} Bxf4 {[%clk 01:22:43]} {[%emt 00:02:07]} 10.
Ncxd4 {[%clk 01:28:39]} {[%emt 00:01:17]} Bd6 {[%clk 01:21:57]} {[%emt
00:01:16]} 11. Nb5 {[%clk 01:28:17]} {[%emt 00:00:53]} Qe7 {[%clk 01:21:41]}
{[%emt 00:00:45]} 12. Nxd6+ {[%clk 01:28:10]} {[%emt 00:00:37]} Qxd6 {[%clk
01:22:03]} {[%emt 00:00:08]} 13. Bd3 {[%clk 01:28:24]} {[%emt 00:00:16]} O-O
{[%clk 01:21:52]} {[%emt 00:00:42]} 14. Bc2 {[%clk 01:24:35]} {[%emt 00:04:19]}
Rd8 {[%clk 01:21:12]} {[%emt 00:01:09]} 15. Qd4 {[%clk 01:22:08]} {[%emt
00:02:57]} b6 {[%clk 01:19:46]} {[%emt 00:01:57]} 16. O-O {[%clk 01:21:19]}
{[%emt 00:01:19]} Bb7 {[%clk 01:19:18]} {[%emt 00:00:56]} 1/2-1/2